{"text_format":"1","workbook":"xlsx","n_sheets":5,"sheets":["Risikovurderingsskjema","Skala rettledning","Eksempel på utfylling","Fargekoder","Kriterietabell"],"not_rendered":{"charts":0,"images":0,"macros":0,"external_links":0,"defined_names":0,"comments":3,"pivot_tables":0},"unopened":[],"bounds":{"document_bytes":16777216,"sheet_cells":100000,"rows_first":2000,"rows_last":500,"rows_between":2000,"halvings":0,"cell_chars":16384,"cell_head_chars":4096},"cells_cut":0,"cells_raw":0,"read":"whole","date_system":"1900"}

{"sheet":"Risikovurderingsskjema","index":0,"n_rows":25,"n_cols":12,"rows_kept":25,"cut":false,"hidden":false,"merged":[[0,12,1048575,21],[0,0,0,11],[1,0,16,0],[3,2,3,3],[5,2,5,3],[1,1,1,11],[2,1,2,11],[6,1,6,11],[3,4,5,11],[4,2,4,3]]}
[{"$f":"A:L+M1+1:1048576+B2+B3a","v":0}]
[null,"Risikovurdering (grov) YTRE MILJØ"]
[]
[null,"Avdeling: ",null,null,"Deltakere:"]
[null,"Dato: "]
[null,"Aktivitet / prosess","ROS-analyse"]
[]
[null,"Område/uønsket hendelse","Mulige årsaker","Konsekvens","Eksisterende tiltak","S","K","R","Forslag om tiltak","S","K","R"]
[]
[null,"Utslipp til luft",null,null,null,null,null,{"$f":"F10*G10","v":0},null,null,null,{"$f":"J10*K10","v":0}]
[null,null,null,null,null,null,null,0,null,null,null,0]
[null,"Utslipp til vann og grunn",null,null,null,null,null,0,null,null,null,0]
[null,"Energiforbruk ",null,null,null,null,null,0,null,null,null,0]
[null,"Kildesortering generelt",null,null,null,null,null,0,null,null,null,0]
[null,"Kildesorterig farlig avfall",null,null,null,null,null,0,null,null,null,0]
[null,"Transport, reise",null,null,null,null,null,0,null,null,null,0]
[null,"Innkjøp",null,null,null,null,null,0,null,null,null,0]
[null,"Vannforbruk",null,null,null,null,null,0,null,null,null,0]
[null,"Annet",null,null,null,null,null,0,null,null,null,0]
[null,"Annet",null,null,null,null,null,0,null,null,null,0]
[null,"Annet",null,null,null,null,null,0,null,null,null,0]
[null,null,null,null,null,null,null,0,null,null,null,0]
[null,null,null,null,null,null,null,0,null,null,null,0]
[null,null,null,null,null,null,null,0,null,null,null,0]
[null,null,null,null,null,null,null,0,null,null,null,0]

{"sheet":"Skala rettledning","index":1,"n_rows":15,"n_cols":7,"rows_kept":15,"cut":false,"hidden":false,"merged":[[2,4,2,6],[2,0,2,2],[11,0,11,2]]}
[" "]
[]
["Sannsynlighet (S)",null,null,null,"KONSEKVENS (K)"]
[null,null,"Forklaring",null,null,null,"Personar"]
[1,"Lite sannsynlig","Ingen tilfeller i virksomheten, men kan ha hørt at det har hendt i liknende virksometer",null,1,"Ufarlig","Ubetydelig personskade. Ubetydelig helseplage. Mindre ubehag/irritasjon . Ikke fravær"]
[2,"Mindre sannsynlig","1 gang pr. 10 år eller oftere.",null,2,"Mindre farlig","Mindre personskade. Mindre helseplage, akutte helseplager. (akutt sykdom med fraver mindre enn 3 dager) Hjelp eller vurdering fra helsepersonell påkrevd. "]
[3,"Sannsynlig","Skjer årlig. Kjenner til flere enkelttilfeller av kortere varighet",null,3,"Farlig","Flere enkelttilfelle av alvorlig syke/skadde. Betydelig og alvorlig helseplage, akutte helseskader, med over 3 dagar fraver. Avvik fra regler og prosedyrer. "]
[4,"Meget sannsynlig","Skjer månedlig. Forhold som opptrer i lengre perioder",null,4,"Kritisk","Omfattende helseplage som kan medføre varig mén, lengre fraver. Rammer også nøkkelfunksjoner i virksomheten. Avvik fra regler og prosedyrer."]
[5,"Svært sannsynlig","Skjer hver uke. Forhold som er kontinuerlig tilstede i bedriften.",null,5,"Svært kritisk","Kan resultere i livstruende helseskade, uføre, eller død. Mange alvorlig syke, skadde. Alvorlig avvik fra regler og prosedyrer."]
[]
[]
["Risikohandtering "]
[" 1 - 4","Lav risiko ","Kan bli akseptert uten videre. Risikoreduserende tiltak kan vurderes opp mot kost/nytte-effekt."]
[" 5 - 9 ","Middels risiko ","Kan bli akseptert etter vurdering. Bør vurdere risikoreduserende tiltak."]
[" 10 - 25 ","Høy risiko ","Ikke akseptabelt. Alle hendelser skal vurderes opp mot risikoreduserende tiltak."]

{"sheet":"Eksempel på utfylling","index":2,"n_rows":27,"n_cols":12,"rows_kept":27,"cut":false,"hidden":false,"merged":[[0,0,0,11],[0,12,1048575,21],[1,0,29,0],[1,1,1,11],[2,1,2,11],[3,2,3,3],[3,4,5,11],[4,2,4,3],[5,2,5,3],[6,1,6,11]]}
[]
[null,"Risikovurdering av HMS-forhold"]
[]
[null,"Avdeling: "]
[null,"Dato: "]
[null,"Aktivitet / prosess"]
[]
[null,"Mogeleg uønska hending","Mogelege årsaker","Konsekvens","Eksisterande tiltak","S","K","R","Forslag om tiltak","S","K","R"]
[null,"Dreiemaskin eksploderer","Turtallet kjøres for høyt","Metalldeler kan slynges ut i rommet og treffer personell","Turtallsperre på maskin",2,3,{"$f":"F9*G9","v":6},"Kraftig skjerming rundt rotor",1,2,{"$f":"J9*K9","v":2}]
[null,"Luften oppleves så dårlig at folk blir trøtte etter lunch","For lav kapasitet på ventilasjonsanlegg","Folk blir trøtte og uopplagt etter lunch","Godkjent vifteanslegg",4,2,{"$f":"F10*G10","v":8},"Gjennomgang av ventilasjonsanlegget",3,2,{"$f":"J10*K10","v":6}]
[null,"Altan over hovedinngang faller ned","For dårlig sikret altan, rustne festean-ordnninger kan gi etter.","Tap av liv eller store personskader ","Forbud mot å oppholde seg på altan",2,5,10,"Sikre altan med forskriftsmessige fester",1,5,5]
[null,"Eksplosiv brann på lagerrom","Gammelt ledningsnett samt store ansamlinger av brennbart materiale","Brann som kan ødelegge hele hovedbygningen. Mulig liv kan gå tapt","Plakat på veggen i lagerrom om ikke å lagre brennbart materiale her",2,5,10,"Skifte ut ledningsnett. Skifte gulv og takplater til ikke brennbart materiale",1,3,3]
[null,null,null,null,null,null,null,0,null,null,null,0]
[null,null,null,null,null,null,null,0,null,null,null,0]
[null,null,null,null,null,null,null,0,null,null,null,0]
[null,null,null,null,null,null,null,0,null,null,null,0]
[null,null,null,null,null,null,null,0,null,null,null,0]
[null,null,null,null,null,null,null,0,null,null,null,0]
[null,null,null,null,null,null,null,0,null,null,null,0]
[null,null,null,null,null,null,null,0,null,null,null,0]
[null,null,null,null,null,null,null,0,null,null,null,0]
[null,null,null,null,null,null,null,0,null,null,null,0]
[null,null,null,null,null,null,null,0,null,null,null,0]
[null,null,null,null,null,null,null,0,null,null,null,0]
[null,null,null,null,null,null,null,0,null,null,null,0]
[null,null,null,null,null,null,null,0,null,null,null,0]
[null,null,null,null,null,null,null,0,null,null,null,0]

{"sheet":"Fargekoder","index":3,"n_rows":14,"n_cols":8,"rows_kept":14,"cut":false,"hidden":false,"merged":[[4,1,8,1],[2,3,2,7],[11,3,11,4],[12,3,12,4],[13,3,13,4]]}
[]
[]
[null,null,null,"Konsekvens"]
[null,null,null,1,2,3,4,5]
[null,"Sann-synlighet",5,5,10,15,20,25]
[null,null,4,4,8,12,16,20]
[null,null,3,3,6,9,12,15]
[null,null,2,2,4,6,8,10]
[null,null,1,1,2,3,4,5]
[]
[]
[null,null," 1 - 4","Lav risiko "]
[null,null," 5 - 9 ","Middels risiko "]
[null,null," 10 - 25 ","Høy risiko "]

{"sheet":"Kriterietabell","index":4,"n_rows":9,"n_cols":8,"rows_kept":9,"cut":false,"hidden":false,"merged":[[1,3,1,7],[2,1,6,1],[8,3,8,7]]}
[]
[null,null,null,"Risikomatrise for faktoren …………………….."]
[null,"Sannsynlighet for hendelser","Svært sannsynlig (5)","A-5","B-5","C-5","D-5","E-5"]
[null,null,"Meget sannsynlig (4)","A-4","B-4","C-4","D-4","E-4"]
[null,null,"Sannsynlig (3)","A-3","B-3","C-3","D-3","E-3"]
[null,null,"Mindre sannsynlig(2)","A-2","B-2","C-2","D-2","E-2"]
[null,null,"Lite sannsynleg (1)","A-1","B-1","C-1","D-1","E-1"]
[null,null,null,"Ufarlig (A)","Farlig (B)","Kritisk ©","Meget Kritisk (D)","Katastrofalt (E)"]
[null,null,null,"Konsekvenser av hendelser"]